Cogmind - Beta 12 @@@ ROGUE MODE // 2023.03.15 @ 00:14:07 Player: dhtilly Result: Destroyed by G-34 Mercenary with Small Laser Performance ------------- Evolutions (0) 0 Regions Visited (1) 200 Robots Destroyed (2) 10 Value Destroyed (81) 81 Prototype IDs (0) 0 Alien Tech Used (0) 0 Bonus (0) 0 TOTAL SCORE: 291 Bonus ------- None Cogmind --------- Core Integrity 0/250 Matter 227/500 Energy 85/250 System Corruption 0% Temperature Cool (12) Movement Rolling (115) Ox1 Location -10/Materials Parts ------- > --- POWER (1) -------- Ion Engine > --- PROPULSION (2) --- Light Treads Compact Wheel > --- UTILITY (2) ------ Small Storage Unit High-capacity Matter Pod > --- WEAPON (2) ------- Beam Rifle Beam Rifle > --- INVENTORY (8) ---- Light Nuclear Core Light Treads Improved Heat Sink Peak State ------------ > --- POWER ------------ Ion Engine > --- PROPULSION ------- Light Treads Compact Wheel > --- UTILITY ---------- Small Storage Unit High-capacity Matter Pod > --- WEAPON ----------- Beam Rifle Beam Rifle > --- INVENTORY -------- Light Nuclear Core Light Treads Improved Heat Sink [Rating: 9] Favorites ----------- Power Ion Engine Engine Ion Engine Propulsion Compact Wheel Treads Light Treads Wheel Compact Wheel Utility Small Storage Unit Storage Small Storage Unit Weapon Light Assault Rifle Energy Gun Beam Rifle Ballistic Gun Light Assault Rifle Build | -11 -10 ------- Run | Jun Mat Slots Evolved . | . . Power . | . . Propulsion . | . . Utility . | . . Weapon . | . . Parts Attached 12 | 6 6 Power 2 | 1 1 Engine 2 | 1 1 Core . | . . Reactor . | . . Propulsion 3 | 2 1 Treads 1 | . 1 Leg . | . . Wheel 2 | 2 . Hover . | . . Flight . | . . Utility 2 | 1 1 Device . | . . Storage 2 | 1 1 Processor . | . . Hackware . | . . Protection . | . . Artifact . | . . Weapon 5 | 2 3 Energy Gun 2 | . 2 Energy Cannon . | . . Ballistic Gun 3 | 2 1 Ballistic Cannon . | . . Launcher . | . . Special Weapon . | . . Impact Weapon . | . . Slashing Weapon . | . . Piercing Weapon . | . . Special Melee Weapon . | . . Unidentified Prototypes . | . . Parts Lost 5 | . 5 Power 1 | . 1 Propulsion 1 | . 1 Utility . | . . Weapon 3 | . 3 Highest Loss Streak 5 | . 5 To Critical Strikes . | . . Average Slot Usage (%) 81 | . 81 Engine 11 | . 11 Wheel 26 | . 26 Storage 14 | . 14 Energy Gun 1 | . 1 Ballistic Gun 25 | . 25 Naked Turns . | . . Heaviest Build 20 | 13 20 Greatest Support 32 | 32 32 Greatest Overweight (x) 1 | . 1 Average Overweight (x) . | . . Largest Inventory Capacity 8 | 8 8 Average Capacity 7 | 6 8 Most Carried 7 | 4 7 Average Carried 4 | 2 5 Final Capacity 8 | 8 8 Final Carried 4 | 4 3 Class Distribution -------------------- 100% | Mutant Dominant Class ---------------- Mutant | -10/Materials Resources | -11 -10 ----------- Run | Jun Mat Matter Collected 304 | 178 126 Remotely . | . . Salvage Created 85 | . 85 Parts 6 | . 6 Haulers Intercepted . | . . Recyclers Shooed . | . . Parts Field Recycled . | . . Retrieved Matter . | . . Parts Self-Destructed . | . . Prevented . | . . Kills | -11 -10 ------- Run | Jun Mat Combat Hostiles Destroyed 2 | . 2 Guns 2 | . 2 Classes Destroyed 1 | . 1 Grunt 2 | . 2 Best Kill Streak 2 | . 2 Combat Bots Only 2 | . 2 Max Kills in Single Turn 1 | . 1 Gunslinging . | . . Exploded . | . . Melee . | . . Uniques/NPCs Destroyed . | . . Combat | -11 -10 -------- Run | Jun Mat Damage Taken 831 | . 831 Core 258 | . 258 Absorbed by Shields . | . . Core Remaining (%) 100 | 100 . Volleys Fired 25 | . 25 Largest 2 | . 2 Hottest 40 | . 40 Shots Fired 44 | . 44 Gun 44 | . 44 Cannon . | . . Launcher . | . . Special . | . . Kinetic 44 | . 44 Thermal . | . . Explosive . | . . Electromagnetic . | . . Robot Hit Streak 8 | . 8 Robot Miss Streak 3 | . 3 Penetration Max . | . . Secondary Targets 1 | . 1 Max Gunslinging Chain 1 | . 1 Shots Hit Robots 25 | . 25 Core Hits 6 | . 6 Critical Kills . | . . Critical Parts Destroyed . | . . Critical Strikes . | . . Melee Attacks . | . . Impact . | . . Slashing . | . . Piercing . | . . Sneak Attacks . | . . Combat Hostiles . | . . Follow-up Attacks . | . . Damage Inflicted 234 | . 234 Guns 234 | . 234 Cannons . | . . Explosions . | . . Melee . | . . Ramming . | . . Kinetic 234 | . 234 Thermal . | . . Explosive . | . . Electromagnetic . | . . Impact . | . . Slashing . | . . Piercing . | . . Highest Corruption . | . . Average Corruption . | . . Corruption Purged . | . . Corruption Blocked . | . . Overload Shots . | . . Overflow Damage . | . . Projectiles . | . . Explosions . | . . Melee . | . . Knockbacks . | . . Impact . | . . Kinetic . | . . Secondary . | . . Self-Inflicted Damage . | . . Shots . | . . Rammed . | . . Targets Rammed . | . . Kicked . | . . Crushed . | . . Highest Temperature 16 | . 16 Average Temperature 5 | . 5 Received Heat Transfer 477 | . 477 Siege Activations . | . . Robots Corrupted . | . . Combat Hostiles . | . . Parts Fried . | . . Impact Corruptions . | . . Robots Melted . | . . Combat Hostiles . | . . Parts Melted . | . . Heat Transferred . | . . Parts Sabotaged . | . . Parts Stolen . | . . Parts Stripped . | . . Power Chain Reactions . | . . Missiles Intercepted . | . . Alert | -11 -10 ------- Run | Jun Mat Peak Influence 60 | . 60 Initial . | . . Average 17 | . 20 Maximum Alert Level . | . . Low Security (%) 100 | 100 100 Level 1 . | . . Level 2 . | . . Level 3 . | . . Level 4 . | . . Level 5 . | . . High Security . | . . Max Security . | . . Squads Dispatched 1 | . 1 Investigation 1 | . 1 Extermination . | . . Reinforcement . | . . Assault . | . . Garrison . | . . Intercept . | . . Searches Triggered . | . . Construction Impeded . | . . Haulers Reinforced . | . . Active Scanning Responses . | . . Cargo Convoy Interrupts . | . . Stealth | -11 -10 --------- Run | Jun Mat Distress Signals . | . . Communications Jammed . | . . Distress Signals . | . . Times Spotted 8 | . 8 Peak Tracking Total 6 | . 6 Tactical Retreats . | . . Traps | -11 -10 ------- Run | Jun Mat Traps Triggered 1 | . 1 Indirectly . | . . Trap Hack Attempts . | . . Triggered . | . . Disarmed . | . . Reprogrammed . | . . Reused . | . . Traps Extracted . | . . Installed . | . . Triggered . | . . Machines | -11 -10 ---------- Run | Jun Mat Machines Disabled . | . . Max in Single Turn . | . . Machines Repaired . | . . Machines Sabotaged . | . . Overloaded Fab Kills . | . . Hacking | -11 -10 --------- Run | Jun Mat Machines Accessed 1 | . 1 Terminals 1 | . 1 Fabricators . | . . Repair Stations . | . . Recycling Units . | . . Scanalyzers . | . . Garrison Access . | . . Total Hacks 6 | . 6 Successful 2 | . 2 Failed 4 | . 4 Catastrophic . | . . Database Lockouts . | . . Manual 3 | . 3 Terminals 6 | . 6 Fabricators . | . . Repair Stations . | . . Recycling Units . | . . Scanalyzers . | . . Garrison Access . | . . Terminal Hacks 1 | . 1 Terminal Index 1 | . 1 Fabricator Hacks . | . . Repair Station Hacks . | . . Recycling Unit Hacks . | . . Scanalyzer . | . . Garrison Access Hacks . | . . Unauthorized Hacks 1 | . 1 Terminals 1 | . 1 Botnet 1 | . 1 Fabricators . | . . Repair Stations . | . . Recycling Units . | . . Scanalyzers . | . . Garrison Access . | . . Data Cores Recovered . | . . Used . | . . Hacking Detections 1 | . 1 Full Trace Events . | . . Feedback Events . | . . Feedback Blocked . | . . Robot Schematics Acquired . | . . Robots Built . | . . Authchips . | . . Time . | . . Total Robot Build Rating . | . . Part Schematics Acquired . | . . Parts Built . | . . Authchips . | . . Time . | . . Total Part Build Rating . | . . Parts Repaired . | . . Time . | . . Parts Recycled . | . . Recycled Matter . | . . Retrieved Matter . | . . Retrieved Components . | . . Parts Scanalyzed . | . . Part Schematics Acquired . | . . Parts Damaged . | . . Bothacking | -11 -10 ------------ Run | Jun Mat Used RIF Installer . | . . Robots Hacked . | . . Non-combat . | . . Combat . | . . Robot Hacks Applied . | . . Relay Couplers Released . | . . Fabnet Peak Effective % . | . . Robots Rewired . | . . Allies Hacked . | . . Hacks Repelled . | . . Allies | -11 -10 -------- Run | Jun Mat Total Allies . | . . Largest Group . | . . Highest-Rated Group . | . . Highest-Rated Ally . | . . Total Orders . | . . Ally Attacks . | . . Total Damage . | . . Kills . | . . Allies Corrupted . | . . Allies Melted . | . . Intel | -11 -10 ------- Run | Jun Mat Robot Analysis Total . | . . Derelict Logs Recovered . | . . Drone Launches . | . . Drone Recoveries . | . . Exploration | -11 -10 ------------- Run | Jun Mat Turns Passed 289 | 44 245 Spaces Moved 195 | 35 160 Core 7 | 7 . Treads . | . . Legs . | . . Wheels 188 | 28 160 Hover . | . . Flight . | . . Fastest Speed 50 | 50 100 Average Speed 98 | 90 100 Slowest Speed 115 | 100 115 Overloaded Moves . | . . Propulsion Burnouts . | . . Robots Hopped . | . . Cave-ins Triggered . | . . Exploration Rate (%) 15 | 3 28 Regions Visited 1 Branch Regions . Pre-discovered Areas . | . . Known Exits Taken . | . . Unknown Exits Taken 1 | 1 . Scrap Searched . | . . Spaces Dug . | . . Terrain Destroyed . | . . Melee . | . . Projectile . | . . AOE . | . . Terrain Rammed . | . . Walls Destroyed . | . . Machines Disabled . | . . Actions | -11 -10 --------- Run | Jun Mat Total 248 | 44 204 Wait 10 | . 10 Move 194 | 34 160 Hop . | . . Pick Up 7 | 4 3 Fast Attach 8 | 6 2 Attach 4 | . 4 Detach . | . . Swap . | . . Drop . | . . Fire 25 | . 25 Melee . | . . Ram . | . . Kick . | . . Crush . | . . Escape Stasis . | . . Rewire . | . . Trap . | . . Miscellaneous . | . . Route ------- -11/Junkyard -10/Materials History --------- Turn | Location | Event 5 | -11/Junkyard | Discovered new exit (range 15) 45 | -11/Junkyard | Entered Materials 268 | -10/Materials | Core integrity fell below 50% 281 | -10/Materials | Core integrity fell below 20% 290 | -10/Materials | Destroyed by G-34 Mercenary with Small Laser Last Messages --------------- 00087_ Acquired Hcp. Matter Pod. 00163_ K-01 Serf collects debris. 00195_ G-47 Trooper destroyed. 00195_ Switching to secondary target: G-34 Mercenary. 00206_ G-34 Mercenary destroyed. 00209_ Acquired 44 matter. 00211_ Acquired Lgt. Nuclear Core. 00213_ Acquired Imp. Heat Sink. 00217_ Triggered Alarm Trap. 00217_ An alarm sounds. 00217_ ALERT: Alarm triggered, dispatching investigation squad. 00233_ U-05 Engineer lays Concrete. 00241_ Lgt. Assault Rifle destroyed. 00243_ Ion Engine destroyed. 00261_ Assault Rifle destroyed. 00264_ Critical hit (Burn: +37). 00272_ Lgt. Assault Rifle destroyed. 00273_ Com. Wheel destroyed. 00278_ Acquired Beam Rifle. 00288_ M-13 Machinist repairs G-34 Mercenary. Map ----- +----------------------------------------------------+ | ??????????????????? #????????????# | | ????????????????????# #????????????# | | ????????????????????# #????????????# | | ????????????????????# #????????????# | | ????????????????????# #????????????# | | ???????????????????## ########?????#+ | | ???????????????????# # ## ####### | | ???????????????????# # ## | | ???????????????????# # | | ???????????????????# # ! [ ### | | ???????????????????# # %= ####+#?? | | ???????????????????## ########## ##?? ? | | ????????????????????# #????????# #?? ! | | ????????????????????# #????????# #?# | | ????????????????????# #????????# #?? """ | | ????????????????????# #????????# #?# """ | | ????????????????????# #????????# #?# """ | | ????????????????????# #????????# ?+ | | ????????????????????# #????????# #?# ??? | | ??????????????#####?# #????????# #?#?###+# | | ??????????????#[[ ### #????????# ##### | | ??????????????# g #????????# | | ??????????????#!! gm # """"???# T | | ??????????????#!! gg + """"???# | | ??????????????#!! g # """"???# | | ??????????????#!! @ #????????# #### | | ??????????????##### #????????# | | ??????????????????# #????????# | | ??????????????????# #????????# | | ??????????????????# #????????###+####### | | ??????????????????# #????????# #??# | | ??????????????????# #????????# #??# | | ??????????????????#^ #????????#% """#??# | | ??????????????????+ #????????# """#??# | | ??????????????????# #????????# """#??# | | ??????????????????? #????????# #??# | | ??????????????????? #????????########??# | | ??????????????????? #??????????????????# | | ??????????????????? #??????????????????# | | ??????????????????? #??????????????????# | | ??????????????????? ???????????????????# | | ?????????????????????????????????????????### | | ???????????????????????????????????????????? | | ???????????????????????????????????????????? | | ???????????????????????????????????????????? | | ???????????????????????????????????????????? | | ???????????????????????????????????????????? | | ???????????????????????????????????????????? | | ???????????????????????????????????????????? | | ???????????????????????????????????????????? | +----------------------------------------------------+ Best States ------------- Heat Dissipation 25 Energy Generation 10 Energy Capacity 250 Matter Stores 300 Matter Capacity 500 Sight Range 16 Terrain Scan Density 10 Evasion (%) 40 Item Schematics ----------------- None Robot Schematics ------------------ None Fabricated ------------ Nothing Alien Tech Used ----------------- None Achievements -------------- None Challenges ------------ None Game ------ Seed GaussEfficiencyFirepult Manual? 0 Play Time 00:04:11 Cumulative 102.5 hours Start 2023.03.15 @ 00:09:51 End 2023.03.15 @ 00:14:07 Sessions 1 Manual Loads 0 Difficulty Rogue Special Mode None Game No. 64 Rogue 64 Adventurer 0 Explorer 0 Win Type - Total 0 Types 0/0/0/0/0/0/0/0/0 Lore% 41 Gallery% 53 Achievement% 42 Wizard Run 0 Options --------- ASCII 0 Keyboard 1 Movement Vi Keybinds 0 Fullscreen 1 Font 12/Smallcaps Map View 83x54 Tactical HUD 1 Map Filters NONE Filters NONE Steam 1 RUN: 137cec9d-0c24-4b59-a4bb-2ed69e5434e5